Cogmind - Beta 13 @@@ ROGUE MODE // 2024.04.18 @ 10:43:09 Player: Calliope Result: Destroyed by DAS Turret with DAS Cannon Performance ------------- Evolutions (1) 500 Regions Visited (4) 800 Robots Destroyed (33) 165 Value Destroyed (735) 735 Prototype IDs (3) 60 Alien Tech Used (0) 0 Bonus (-68) -68 TOTAL SCORE: 2192 Bonus ------- Friendly Fire -68 Cogmind --------- Core Integrity 0/400 Matter 300/300 Energy 280/280 System Corruption 5% Temperature Cool (0) Movement Core (850) Ox16 Location -9/Exiles Parts ------- > --- POWER (1) -------- Cooled Ion Engine > --- PROPULSION (2) --- (None) > --- UTILITY (4) ------ High-capacity Storage Unit Terrain Scan Processor > --- WEAPON (2) ------- Particle Gun > --- INVENTORY (20) --- Cooled Ion Engine Light Treads Light Treads Light Treads Compact Wheel Improved Heat Sink Signal Interpreter Signal Interpreter Terrain Scan Processor ECM Suite ECM Suite Medium Laser Medium Laser Spread Laser Advanced Beam Cannon Grenade Launcher Mining Laser Peak State ------------ > --- POWER ------------ Light Nuclear Core > --- PROPULSION ------- Wheel Compact Wheel > --- UTILITY ---------- High-capacity Storage Unit Improved Terrain Scanner Terrain Scan Processor Hacking Suite > --- WEAPON ----------- Spread Laser Advanced Beam Cannon > --- INVENTORY -------- Cooled Ion Engine Cooled Ion Engine Cooled Ion Engine Light Treads Light Treads Improved Heat Sink Signal Interpreter Signal Interpreter Terrain Scan Processor ECM Suite ECM Suite Medium Laser Medium Laser Particle Gun EMP Blaster Grenade Launcher [Rating: 21] Favorites ----------- Power Cooled Ion Engine Engine Cooled Ion Engine Power Core Light Nuclear Core Propulsion Light Treads Treads Light Treads Leg Aluminum Leg Wheel Compact Wheel Utility Improved Terrain Scanner Device Improved Terrain Scanner Storage High-capacity Storage Unit Processor Terrain Scan Processor Hackware Hacking Suite Weapon Medium Laser Energy Gun Medium Laser Energy Cannon Advanced Beam Cannon Launcher EMP Blaster Build | -11 -10 -9 -9 -9 ------- Run | Yrd Mat Mat Min Exi Slots Evolved 2 | . . 2 . . Power . | . . . . . Propulsion . | . . . . . Utility 2 | . . 2 . . Weapon . | . . . . . Parts Attached 36 | 7 14 15 . . Power 5 | 1 2 2 . . Engine 4 | 1 1 2 . . Core 1 | . 1 . . . Reactor . | . . . . . Propulsion 11 | 2 6 3 . . Treads 6 | 2 2 2 . . Leg 2 | . 2 . . . Wheel 3 | . 2 1 . . Hover . | . . . . . Flight . | . . . . . Utility 9 | 2 3 4 . . Device 4 | 1 . 3 . . Storage 3 | 1 2 . . . Processor 1 | . . 1 . . Hackware 1 | . 1 . . . Protection . | . . . . . Artifact . | . . . . . Weapon 11 | 2 3 6 . . Energy Gun 7 | 2 2 3 . . Energy Cannon 1 | . . 1 . . Ballistic Gun . | . . . . . Ballistic Cannon . | . . . . . Launcher 3 | . 1 2 . . Special Weapon . | . . . . . Impact Weapon . | . . . . . Slashing Weapon . | . . . . . Piercing Weapon . | . . . . . Special Melee Weapon . | . . . . . Unidentified Prototypes 3 | . . 3 . . Parts Lost 11 | . 3 3 . 5 Power 3 | . 2 1 . . Propulsion 4 | . . 2 . 2 Utility 2 | . . . . 2 Weapon 2 | . 1 . . 1 Highest Loss Streak 5 | . 1 3 . 5 To Critical Strikes . | . . . . . Average Slot Usage (%) 97 | . 96 95 100 98 Engine 10 | . 13 4 11 11 Core 1 | . . 5 . . Treads 13 | . 8 8 22 21 Leg 4 | . 9 . . . Wheel 6 | . 9 12 . . Device 8 | . 5 11 11 11 Storage 12 | . 14 11 11 11 Processor 6 | . . 11 11 11 Hackware 9 | . 8 11 11 10 Energy Gun 17 | . 24 15 11 11 Launcher 4 | . . 4 11 10 Naked Turns . | . . . . . Heaviest Build 56 | 15 49 56 56 56 Greatest Support 40 | 40 40 40 40 40 Greatest Overweight (x) 16 | . 8 5 1 16 Average Overweight (x) . | . . 1 1 1 Largest Inventory Capacity 20 | 8 20 20 20 20 Average Capacity 15 | 7 14 20 20 20 Most Carried 20 | 4 18 20 17 17 Average Carried 11 | 3 9 17 16 17 Final Capacity 20 | 8 20 20 20 20 Final Carried 17 | 4 17 16 17 17 Class Distribution -------------------- 99% | Mutant Dominant Class ---------------- Mutant | -10/Materials Mutant | -9/Materials Mutant | -9/Mines Mutant | -9/Exiles Resources | -11 -10 -9 -9 -9 ----------- Run | Yrd Mat Mat Min Exi Matter Collected 669 | 192 233 164 77 3 Remotely . | . . . . . Salvage Created 1006 | 27 579 258 87 55 Parts 65 | 2 30 20 11 2 Haulers Intercepted 4 | . 1 3 . . Recyclers Shooed 1 | . . 1 . . Parts Field Recycled . | . . . . . Retrieved Matter . | . . . . . Parts Self-Destructed . | . . . . . Prevented . | . . . . . Kills | -11 -10 -9 -9 -9 ------- Run | Yrd Mat Mat Min Exi Combat Hostiles Destroyed 24 | . 13 5 6 . Guns 9 | . 8 1 . . AOE 12 | . 3 3 6 . Classes Destroyed 8 | 1 4 3 . . Worker 1 | . . 1 . . Tunneler 1 | 1 . . . . Hauler 4 | . 1 3 . . Operator 1 | . 1 . . . Watcher 2 | . 2 . . . Swarmer 9 | . . 3 6 . Grunt 13 | . 13 . . . Sentry 2 | . . 2 . . Best Kill Streak 5 | 1 4 5 3 . Combat Bots Only 4 | . 3 4 3 . Max Kills in Single Turn 3 | 1 2 2 3 . Gunslinging . | . . . . . Exploded 3 | . 2 2 3 . Melee . | . . . . . Uniques/NPCs Destroyed . | . . . . . Combat | -11 -10 -9 -9 -9 -------- Run | Yrd Mat Mat Min Exi Hostile Shots Fired 155 | . 82 39 7 27 Missed 45 | . 23 14 3 5 Damage Taken 2102 | . 786 349 123 844 Core 608 | . 181 73 10 344 Absorbed by Shields . | . . . . . Core Remaining (%) 63 | 100 27 . . . Volleys Fired 80 | 1 56 19 4 . Largest 2 | 2 2 2 2 . Hottest 133 | 100 100 133 98 . Shots Fired 155 | 2 106 37 8 2 Gun 140 | 2 104 29 4 1 Cannon 5 | . . 5 . . Launcher 10 | . 2 3 4 1 Special . | . . . . . Kinetic . | . . . . . Thermal 145 | 2 104 34 4 1 Explosive 5 | . 2 3 . . Electromagnetic 5 | . . . 4 1 Robot Hit Streak 10 | 1 10 10 1 2 Robot Miss Streak 7 | . 3 4 7 . Penetration Max . | . . . . . Secondary Targets 1 | . 1 . . . Max Gunslinging Chain 1 | . 1 . . . Shots Hit Robots 96 | 1 68 25 1 1 Core Hits 60 | 1 33 18 6 2 Critical Kills . | . . . . . Critical Parts Destroyed . | . . . . . Critical Strikes 9 | . 9 . . . Burn 9 | . 9 . . . Melee Attacks . | . . . . . Impact . | . . . . . Slashing . | . . . . . Piercing . | . . . . . Sneak Attacks . | . . . . . Combat Hostiles . | . . . . . Follow-up Attacks . | . . . . . Damage Inflicted 2046 | 12 1041 677 257 59 Guns 1192 | 12 841 307 32 . Cannons 82 | . . 82 . . Explosions 764 | . 200 288 225 51 Melee . | . . . . . Ramming 8 | . . . . 8 Kinetic . | . . . . . Thermal 1351 | 12 841 389 109 . Explosive 488 | . 200 288 . . Electromagnetic 199 | . . . 148 51 Impact . | . . . . . Slashing . | . . . . . Piercing . | . . . . . Highest Corruption 5 | . 2 4 4 5 Average Corruption 3 | . 2 4 4 4 Corruption Purged . | . . . . . Corruption Blocked . | . . . . . Effects 35 | . 1 5 20 9 Message Errors 7 | . . 2 3 2 Matter Fused 9 | . . 1 6 2 Heat Flow Errors 4 | . 1 . . 3 Energy Discharges 4 | . . . 4 . Parts Fused 1 | . . . 1 . Data Loss (minor) 4 | . . 2 2 . Data Loss (major) 2 | . . . 2 . Misfires 2 | . . . . 2 Alerts 2 | . . . 2 . Overload Shots . | . . . . . Overflow Damage 61 | . . 54 . 7 Projectiles . | . . . . . Explosions 54 | . . 54 . . Melee 7 | . . . . 7 Knockbacks . | . . . . . Impact . | . . . . . Kinetic . | . . . . . Secondary . | . . . . . Self-Inflicted Damage 150 | . 51 . 91 8 Shots 8 | . 2 . 5 1 Rammed 1 | . . . . 1 Targets Rammed 1 | . . . . 1 Kicked . | . . . . . Crushed . | . . . . . Highest Temperature 345 | 39 231 345 54 210 Average Temperature 99 | 20 90 142 25 83 Received Heat Transfer 611 | . 441 90 . 80 Effects 4 | . 3 1 . . Interference 3 | . 3 . . . Damage (minor) 1 | . . 1 . . Siege Activations . | . . . . . Robots Corrupted . | . . . . . Combat Hostiles . | . . . . . Parts Fried . | . . . . . Impact Corruptions 2 | . . . . 2 Robots Melted 3 | . 2 1 . . Combat Hostiles 3 | . 2 1 . . Parts Melted 9 | . 6 2 1 . Heat Transferred 4111 | 37 3145 755 174 . Parts Sabotaged . | . . . . . Parts Stolen . | . . . . . Parts Stripped . | . . . . . Power Chain Reactions 1 | . . . 1 . Alert | -11 -10 -9 -9 -9 ------- Run | Yrd Mat Mat Min Exi Peak Influence 219 | 5 219 184 167 . Initial 33 | . . 33 5 . Average 46 | 1 74 55 34 . Maximum Alert Level 1 | . 1 . . . Low Security (%) 98 | 100 94 100 100 . Level 1 1 | . 5 . . . Level 2 . | . . . . . Level 3 . | . . . . . Level 4 . | . . . . . Level 5 . | . . . . . High Security . | . . . . . Max Security . | . . . . . Squads Dispatched 7 | . 7 . . . Investigation 6 | . 6 . . . Extermination . | . . . . . Reinforcement 1 | . 1 . . . Assault . | . . . . . Garrison . | . . . . . Intercept . | . . . . . Searches Triggered . | . . . . . Construction Impeded . | . . . . . Haulers Reinforced . | . . . . . Active Scanning Responses . | . . . . . Cargo Convoy Interrupts . | . . . . . Stealth | -11 -10 -9 -9 -9 --------- Run | Yrd Mat Mat Min Exi Distress Signals 4 | . 2 2 . . Communications Jammed . | . . . . . Distress Signals . | . . . . . Times Spotted 66 | . 29 11 7 19 Peak Tracking Total 14 | . 5 5 4 14 Tactical Retreats 5 | . 3 . . 2 Traps | -11 -10 -9 -9 -9 ------- Run | Yrd Mat Mat Min Exi Traps Triggered 5 | . 4 1 . . Indirectly . | . . . . . Trap Hack Attempts . | . . . . . Triggered . | . . . . . Disarmed . | . . . . . Reprogrammed . | . . . . . Reused . | . . . . . Traps Extracted . | . . . . . Installed . | . . . . . Triggered . | . . . . . Machines | -11 -10 -9 -9 -9 ---------- Run | Yrd Mat Mat Min Exi Machines Disabled 1 | . . . 1 . Max in Single Turn 1 | . . . 1 . Machines Repaired . | . . . . . Machines Dismantled . | . . . . . Machines Sabotaged . | . . . . . Overloaded Fab Kills . | . . . . . Hacking | -11 -10 -9 -9 -9 --------- Run | Yrd Mat Mat Min Exi Machines Accessed 9 | . 8 . 1 . Terminals 7 | . 6 . 1 . Fabricators . | . . . . . Repair Stations . | . . . . . Recycling Units 2 | . 2 . . . Scanalyzers . | . . . . . Garrison Access . | . . . . . Total Hacks 31 | . 26 . 5 . Successful 9 | . 8 . 1 . Failed 22 | . 18 . 4 . Catastrophic 1 | . 1 . . . Database Lockouts . | . . . . . Manual 31 | . 26 . 5 . Terminals 29 | . 24 . 5 . Fabricators . | . . . . . Repair Stations . | . . . . . Recycling Units 2 | . 2 . . . Scanalyzers . | . . . . . Garrison Access . | . . . . . Terminal Hacks 3 | . 3 . . . Alert Level 1 | . 1 . . . Unreport Threat 1 | . 1 . . . Recall Investigation 1 | . 1 . . . Fabricator Hacks . | . . . . . Repair Station Hacks . | . . . . . Recycling Unit Hacks 1 | . 1 . . . Report Inventory 1 | . 1 . . . Scanalyzer . | . . . . . Garrison Access Hacks . | . . . . . Unauthorized Hacks 5 | . 4 . 1 . Terminals 4 | . 3 . 1 . Botnet 4 | . 3 . 1 . Fabricators . | . . . . . Repair Stations . | . . . . . Recycling Units 1 | . 1 . . . Reject 1 | . 1 . . . Scanalyzers . | . . . . . Garrison Access . | . . . . . Data Cores Recovered . | . . . . . Used . | . . . . . Hacking Detections 8 | . 7 . 1 . Full Trace Events 7 | . 6 . 1 . Feedback Events . | . . . . . Feedback Blocked . | . . . . . Robot Schematics Acquired . | . . . . . Robots Built . | . . . . . Authchips . | . . . . . Time . | . . . . . Total Robot Build Rating . | . . . . . Part Schematics Acquired . | . . . . . Parts Built . | . . . . . Authchips . | . . . . . Time . | . . . . . Total Part Build Rating . | . . . . . Parts Repaired . | . . . . . Time . | . . . . . Parts Recycled . | . . . . . Recycled Matter . | . . . . . Retrieved Matter . | . . . . . Retrieved Components . | . . . . . Parts Scanalyzed . | . . . . . Part Schematics Acquired . | . . . . . Parts Damaged . | . . . . . Bothacking | -11 -10 -9 -9 -9 ------------ Run | Yrd Mat Mat Min Exi Used RIF Installer . | . . . . . Robots Hacked . | . . . . . Non-combat . | . . . . . Combat . | . . . . . Robot Hacks Applied . | . . . . . Relay Couplers Released . | . . . . . Fabnet Peak Effective % . | . . . . . Robots Rewired . | . . . . . Allies Hacked . | . . . . . Hacks Repelled . | . . . . . Allies | -11 -10 -9 -9 -9 -------- Run | Yrd Mat Mat Min Exi Total Allies 1 | . . . 1 . Largest Group 1 | . . . 1 . Highest-Rated Group 31 | . . . 31 . Highest-Rated Ally 31 | . . . 31 . Total Orders . | . . . . . Ally Attacks 7 | . . . 7 . Total Damage 21 | . . . 21 . Kills . | . . . . . Allies Corrupted . | . . . . . Allies Melted . | . . . . . Intel | -11 -10 -9 -9 -9 ------- Run | Yrd Mat Mat Min Exi Robot Analysis Total . | . . . . . Derelict Logs Recovered 1 | . . . 1 . Drone Launches . | . . . . . Drone Recoveries . | . . . . . Exploration | -11 -10 -9 -9 -9 ------------- Run | Yrd Mat Mat Min Exi Turns Passed 4427 | 890 1583 626 988 340 Spaces Moved 1853 | 202 895 302 322 132 Core 10 | 4 5 . . 1 Treads 962 | 198 212 99 322 131 Legs 247 | . 247 . . . Wheels 634 | . 431 203 . . Hover . | . . . . . Flight . | . . . . . Fastest Speed 50 | 50 105 105 240 240 Average Speed 170 | 157 142 152 240 245 Slowest Speed 850 | 160 450 320 240 850 Overloaded Moves . | . . . . . Propulsion Burnouts . | . . . . . Robots Hopped . | . . . . . Cave-ins Triggered . | . . . . . Exploration Rate (%) 49 | 19 94 19 70 43 Regions Visited 4 Branch Regions 2 Pre-discovered Areas 1 | . . . 1 . Known Exits Taken . | . . . . . Unknown Exits Taken 4 | 1 1 1 1 . Scrap Searched 2 | . . . 2 . Spaces Dug . | . . . . . Terrain Destroyed 34 | . 16 15 3 . Melee . | . . . . . Projectile . | . . . . . AOE 34 | . 16 15 3 . Terrain Rammed . | . . . . . Walls Destroyed . | . . . . . Machines Disabled . | . . . . . Actions | -11 -10 -9 -9 -9 --------- Run | Yrd Mat Mat Min Exi Total 2977 | 768 1099 432 530 148 Wait 940 | 555 101 80 204 . Move 1849 | 201 894 301 321 132 Hop . | . . . . . Pick Up 32 | 4 19 8 1 . Fast Attach 14 | 7 6 1 . . Attach 12 | . 3 9 . . Detach 9 | . 5 4 . . Swap 10 | . 5 5 . . Drop 15 | . 10 5 . . Fire 80 | 1 56 19 4 . Melee . | . . . . . Ram . | . . . . . Kick . | . . . . . Crush 1 | . . . . 1 Escape Stasis . | . . . . . Rewire 15 | . . . . 15 Trap . | . . . . . Miscellaneous . | . . . . . Route ------- -11/Scrapyard -10/Materials (discovered 4 exits: [*Mat x3] / [*Min]) -9/Materials -9/Mines (discovered 3 exits: [*Mat x2] / [*Exi]) -9/Exiles (discovered 1 exit: [*Min]) History --------- Turn | Location | Event 5 | -11/Scrapyard | Discovered new exit (range 16) 891 | -11/Scrapyard | Entered Materials 892 | -10/Materials | Build established: Mutant 1105 | -10/Materials | Discovered new exit (range 4) 1438 | -10/Materials | Discovered new exit (range 10) 1574 | -10/Materials | Core integrity fell below 50% 2164 | -10/Materials | Discovered new exit (range 11) 2292 | -10/Materials | Discovered new exit (range 3) 2474 | -10/Materials | Entered another Materials area 2474 | -9/Materials | Evolved 2 slots: Utility x2 2821 | -9/Materials | Lost 3 parts (1p2n) 3045 | -9/Materials | Discovered new exit (range 12) 3100 | -9/Materials | Entered Mines 3100 | -9/Mines | Discovered new exit (range 9) 3316 | -9/Mines | Received a Mining Laser from a helpful Derelict 3920 | -9/Mines | Discovered new exit (range 12) 4021 | -9/Mines | Discovered new exit (range 11) 4073 | -9/Mines | Deemed a non-threat by the Exiles lab entrance 4088 | -9/Mines | Entered Exiles 4141 | -9/Exiles | Discovered new exit (range 14) 4223 | -9/Exiles | Met 8R-AWN 4259 | -9/Exiles | Met EX-HEX 4400 | -9/Exiles | Attacked by the Exiles 4418 | -9/Exiles | Core integrity fell below 50% 4426 | -9/Exiles | Core integrity fell below 20% 4428 | -9/Exiles | Destroyed by DAS Turret with DAS Cannon Last Messages --------------- 04400_ A-02 Transporter destroyed. 04402_ EX-DEC: "Let's see what this bad boy can do..." 04402_ EX-DEC deploys DAS Turret. 04403_ EMP Blaster destroyed. 04412_ EX-BIN: "I just want to science!" 04413_ Lgt. Treads destroyed. 04414_ Hacking Suite destroyed. 04415_ Slammed into EX-BIN. 04415_ Destroyed EX Chip 2. 04415_ Destroyed EX Chip 1. 04415_ EX-BIN system corrupted by crushing effect. 04419_ Acquired 3 matter. 04421_ Imp. Terrain Scanner destroyed. 04421_ System corrupted by crushing effect (+1). 04421_ Lgt. Treads destroyed. 04421_ Knocked back. 04426_ as-98368 destroyed. 04428_ Machine disabled. Map ----- +----------------------------------------------------+ | ?????????????????????????????????????????????????? | | ?????????????????????????????????????????????????? | | ?????????????????????????????????????????????????? | | ?????????????????????????????????????????????????? | | ?????????????????????????????????????????????????? | | ?????????????????????????????????????????????????? | | ?????????????????????????????????????????????????? | | ?????????????????????????????????????????????????? | | ?????????????????????????????????????????????????? | | ?????????????????????????????????????????????????? | | ?????????????????????????????????????????????????? | | ?????????????????????????????????????????????????? | | ?????????????????????????????????????????????????? | | ?????????????????" ?????????????????????????????? | | ?????????????????# ?#???????????? ????????????? | | ???????????????### ??????####""? ????????????? | | ????????????####X# #"###""""""" #???????????? | | ??????????? """""" " "" ???????????? | | ?????????? "" """ " ??????????? | | ?????????? " " ? " "?" | | ????????? ? "" | | ????????? " | | ???????? | | ????????? | | ??????????" % | | ?????????#""" a @ """""? ? | | ?????????#" a aa ######????? | | ??????#??"" a z "##????##?##""" | | ?????????""" a """###???#????##""" | | ?????????"" % """###???####?###"""" | | ?????????"" %""##############"" | | ????????"" ##############"""" | | ????????""" % ## %=####""" | | ??????#?"" ! """" | | ????????#"" % % | | ???????#?"""" % | | ?????????# " | | ????????##" " "" """ | | ?????????#"""" ""## ##""" " " ""#" | | ??????????"" ""#### ######""" """## | | ??????????" """"##??# ##?#?###""""### | | ??????????""" """#?### ######?#######? | | ??????????? ""##??#! "!###???#??### | | ??????????#"" """####?#" !#?#??#?##??# | | ????????????""" #?###?#" "##????###?#? | | ?????????????"""" ##?#?###!!""!"#?####??##?? | | ??????????????# #?#?#??########?#??#?#?##? | | ???????????????#### #?##?#??#?#?#?##??###?????# | | ??????????????????## ??##??#?#?#?#????##????##?? | | ???????????????????# ??###?##??#???#?#??????##?# | +----------------------------------------------------+ Best States ------------- Heat Dissipation 28 Energy Generation 14 Energy Capacity 280 Matter Stores 300 Matter Capacity 300 Sight Range 16 Terrain Scan Range 16 Terrain Scan Density 85 Evasion (%) 55 Recoil Reduction 2 Offensive Hacking 10 Item Schematics ----------------- None Robot Schematics ------------------ None Fabricated ------------ Nothing Alien Tech Used ----------------- None Achievements -------------- Party Time Challenges ------------ None Game ------ Seed SkeletonBattleBoomstick Manual? 0 Play Time 00:31:01 Cumulative 17.5 hours Start 2024.04.18 @ 09:02:56 End 2024.04.18 @ 10:43:09 Sessions 3 Manual Loads 0 Difficulty Rogue Special Mode None Game No. 30 Rogue 28 Adventurer 0 Explorer 2 Win Type - Total 0 Types 0/0/0/0/0/0/0/0/0 Lore% 7 Gallery% 21 Achievement% 22 Wizard Run 0 Options --------- Layout 2 ASCII 0 Keyboard 1 Movement Vi Keybinds 0 Fullscreen 2 Font 32/SmallcapsGlow Map View 50x44 Zoom Use 0% Tactical HUD 1 Map Filters NONE Filters NONE Steam 1 RUN: c035a02b-2b33-4a10-8148-8528183f60ff